bitfinex/quotes_SOLUSD_20251218
["timestamp","ask_amount","ask_price","bid_price","bid_amount"]
[1766051770879,8.07333176,123.87,123.8,3.76445163]
[1766051771082,3.76445163,123.86,123.81,3.76445163]
[1766051771281,9.20970441,123.86,123.81,3.76445163]
[1766051771452,9.20970441,123.86,123.8,3.76445163]
[1766051771875,3.76445163,123.85,123.8,3.76445163]
[1766051773068,3.76445163,123.85,123.81,8.07689201]
[1766051774688,11.83876619,123.85,123.8,11.84170888]
[1766051774985,11.83876619,123.85,123.8,8.07725725]
[1766051775170,3.76445163,123.85,123.8,8.07725725]
[1766051776789,3.76445163,123.85,123.8,11.84170888]
[1766051778091,8.07395381,123.86,123.8,11.84170888]
[1766051778271,3.76445163,123.85,123.8,11.84170888]
[1766051779595,3.76445163,123.83,123.79,18.51554351]
[1766051781477,3.76445163,123.84,123.79,18.51554351]
[1766051783280,3.76445163,123.84,123.79,22.27999514]
[1766051783872,3.76445163,123.85,123.79,42.4754875]
[1766051785881,3.76445163,123.85,123.8,3.76445163]
[1766051787403,3.76445163,123.85,123.81,8.07689201]
[1766051791000,5.4443482,123.86,123.81,8.07689201]
[1766051791204,3.76445163,123.85,123.81,8.07689201]
[1766051792399,3.76445163,123.87,123.81,8.07689201]
[1766051792601,9.20967512,123.87,123.81,32.03357366]
[1766051792998,9.20967512,123.87,123.82,3.76445163]
[1766051793679,9.20967512,123.87,123.83,8.07558749]
[1766051794086,5.44522349,123.87,123.83,8.07558749]
[1766051794310,9.20967512,123.88,123.83,11.84003912]
[1766051794509,3.76445163,123.88,123.83,32.02900786]
[1766051796509,3.76445163,123.87,123.83,8.07558749]
[1766051798912,5.44377161,123.88,123.82,18.51364705]
[1766051798913,3.76168592,123.86,123.82,18.51364705]
[1766051800916,3.76168592,123.85,123.82,10.43767296]
[1766051801116,3.76168592,123.84,123.8,10.43767296]
[1766051801322,8.07363329,123.86,123.78,8.07852914]
[1766051801323,3.76168592,123.82,123.78,8.07852914]
[1766051802930,13.51956355,123.84,123.78,8.07852914]
[1766051803216,3.76168592,123.83,123.78,11.84021506]
[1766051804917,3.76168592,123.85,123.8,3.76168592]
[1766051805717,9.20643072,123.85,123.8,3.76168592]
[1766051806321,9.20643072,123.85,123.79,8.80994492]
[1766051806496,9.20643072,123.85,123.8,3.76168592]
[1766051807125,3.76168592,123.84,123.8,8.07754442]
[1766051807323,3.76168592,123.84,123.78,23.95880984]
[1766051807521,3.76168592,123.83,123.78,3.76168592]
[1766051807905,3.76168592,123.83,123.78,11.84005718]
[1766051808621,3.76168592,123.84,123.79,8.07814676]
[1766051808812,3.76168592,123.84,123.79,11.83983268]
[1766051810020,3.76168592,123.84,123.78,37.08539084]
[1766051810320,3.76168592,123.84,123.79,3.76168592]
[1766051812126,3.76168592,123.84,123.8,8.07754442]
[1766051813508,9.20691092,123.85,123.8,32.0330914]
[1766051813715,3.76168592,123.85,123.8,32.0330914]
[1766051816622,5.44506411,123.86,123.8,32.0330914]
[1766051816623,9.20675003,123.86,123.8,28.27140548]
[1766051816823,9.20675003,123.86,123.8,32.0330914]
[1766051817233,9.20675003,123.86,123.81,3.76168592]
[1766051817536,3.76168592,123.85,123.8,23.95554698]
[1766051819828,3.76168592,123.85,123.8,32.0330914]
[1766051821432,2.4079881,123.85,123.8,22.60184916]
[1766051823630,2.4079881,123.85,123.8,20.19386106]
[1766051823949,2.4079881,123.85,123.8,30.67939358]
[1766051824230,2.4079881,123.84,123.8,8.07754442]
[1766051824444,20.18304298,123.87,123.8,8.07754442]
[1766051824742,2.4079881,123.83,123.79,8.07787619]
[1766051825344,2.4079881,123.83,123.8,8.0775014]
[1766051825509,5.4450221,123.85,123.8,8.0775014]
[1766051825710,2.4079881,123.84,123.8,8.0775014]
[1766051826110,2.4079881,123.83,123.79,8.07791309]
[1766051826948,5.4450221,123.84,123.79,8.07791309]
[1766051827246,2.4079881,123.84,123.79,8.07791309]
[1766051827446,7.8530102,123.84,123.79,8.07791309]
[1766051827624,7.8530102,123.84,123.79,30.68139355]
[1766051827820,2.4079881,123.84,123.79,30.68139355]
[1766051829209,7.8530102,123.84,123.79,30.68139355]
[1766051829914,7.8530102,123.84,123.79,28.27340545]
[1766051830106,7.8530102,123.84,123.79,30.68139355]
[1766051830532,2.4079881,123.84,123.79,30.68139355]
[1766051831212,5.4450221,123.85,123.79,30.68139355]
[1766051831412,2.4079881,123.84,123.79,30.68139355]
[1766051831832,5.4450221,123.85,123.79,30.68139355]
[1766051832026,2.4079881,123.84,123.79,30.68139355]
[1766051833547,2.4079881,123.84,123.79,28.27340545]
[1766051833714,2.4079881,123.84,123.79,30.68139355]
[1766051834120,10.48180544,123.86,123.8,2.4079881]
[1766051834320,5.44403318,123.85,123.81,8.07689201]
[1766051837065,5.44403318,123.85,123.79,28.2736893]
[1766051837251,5.44403318,123.85,123.8,2.4079881]
[1766051839243,5.44403318,123.85,123.81,8.07689201]
[1766051839650,5.44403318,123.85,123.81,10.48488011]
[1766051841654,5.44403318,123.85,123.81,2.4079881]
[1766051842338,10.48180544,123.86,123.81,2.4079881]
[1766051842741,10.48180544,123.86,123.81,10.48472812]
[1766051844344,10.48180544,123.86,123.81,2.4079881]
[1766051845462,10.48180544,123.86,123.81,8.076639]
[1766051847168,10.48180544,123.86,123.79,28.2736893]
[1766051847352,2.4079881,123.85,123.8,2.4079881]
[1766051847756,10.48180544,123.86,123.8,2.4079881]
[1766051848343,10.48180544,123.86,123.81,8.07689201]
[1766051848573,2.4079881,123.86,123.81,10.48488011]
[1766051848782,5.44808112,123.87,123.82,2.4079881]
[1766051849144,7.85606922,123.87,123.82,2.4079881]
[1766051849353,2.4079881,123.85,123.81,8.07689201]
[1766051858174,5.44660198,123.86,123.81,8.07689201]
[1766051858472,2.4079881,123.85,123.81,8.07689201]
[1766051863373,2.4079881,123.85,123.8,30.67888361]
[1766051864971,10.48168686,123.86,123.81,2.4079881]
[1766051865180,10.48168686,123.86,123.81,10.48476969]
[1766051866574,10.4814725,123.86,123.81,2.40777374]
[1766051867164,10.4814725,123.86,123.8,30.67866925]
[1766051867675,8.07334743,123.87,123.81,2.40777374]
[1766051867676,10.48096339,123.87,123.81,2.40777374]
[1766051868758,2.40777374,123.86,123.81,10.48409066]
[1766051870773,8.07318965,123.87,123.81,10.48409066]
[1766051870972,2.40777374,123.86,123.81,10.48409066]
[1766051872479,7.85510313,123.86,123.81,10.48409066]
[1766051872981,7.85510313,123.86,123.81,8.07631692]
[1766051873280,15.92893339,123.86,123.81,8.07631692]
[1766051873478,10.481604,123.86,123.81,8.07631692]
[1766051873664,7.85598563,123.85,123.8,8.0773735]
[1766051873862,7.85598563,123.85,123.8,10.48514724]
[1766051880288,5.44821189,123.85,123.8,10.48514724]
[1766051881184,5.44821189,123.85,123.8,8.0773735]
[1766051881395,5.44821189,123.85,123.8,11.83963157]
[1766051881567,5.44821189,123.85,123.8,8.0773735]
[1766051881766,5.44821189,123.85,123.8,11.83963157]
[1766051882462,5.44821189,123.85,123.8,8.0773735]
[1766051882669,3.76225807,123.84,123.79,18.51570413]
[1766051882997,3.76225807,123.83,123.79,10.43767296]
[1766051883170,11.8378464,123.83,123.79,10.43767296]
[1766051883990,8.07528049,123.84,123.79,18.5158284]
[1766051884187,17.28895519,123.84,123.79,22.27808647]
[1766051884378,11.83753856,123.84,123.79,22.27808647]
[1766051884568,5.45095996,123.83,123.79,22.27808647]
[1766051884764,11.83684213,123.85,123.8,3.76225807]
[1766051884987,5.45082469,123.84,123.8,3.76225807]
[1766051885698,5.45082469,123.84,123.8,11.83971579]
[1766051886296,5.45082469,123.84,123.8,8.07745772]
[1766051886486,5.45082469,123.84,123.8,11.83971579]
[1766051888895,5.45082469,123.84,123.8,8.07745772]
[1766051889098,5.45082469,123.84,123.8,11.83971579]
[1766051891382,5.45082469,123.84,123.8,3.76225807]
[1766051892094,9.21308276,123.84,123.79,22.27777613]
[1766051892898,9.21308276,123.84,123.8,8.07746911]
[1766051893095,5.45082469,123.84,123.8,11.83972718]
[1766051893305,5.45082469,123.85,123.81,3.76225807]
[1766051893907,5.45082469,123.85,123.8,11.83972718]
[1766051895599,5.45082469,123.85,123.81,3.76225807]
[1766051895795,5.45082469,123.86,123.82,3.76225807]
[1766051895984,3.76225807,123.87,123.82,3.76225807]
[1766051896188,9.20822922,123.87,123.82,3.76225807]
[1766051897288,3.76225807,123.87,123.82,3.76225807]
[1766051897477,3.76225807,123.87,123.82,11.83823939]
[1766051899402,11.83529132,123.87,123.82,11.83823939]
[1766051899900,3.76225807,123.87,123.82,11.83823939]
[1766051900282,9.20712102,123.87,123.82,11.83823939]
[1766051900516,5.44486295,123.87,123.82,11.83823939]
[1766051900701,3.76225807,123.87,123.82,11.83823939]
[1766051900879,9.20712102,123.87,123.82,11.83823939]
[1766051901890,33.47209453,123.87,123.82,11.83823939]
[1766051902190,3.76225807,123.87,123.82,11.83823939]
[1766051902399,28.02723158,123.87,123.82,11.83823939]
[1766051902985,3.76225807,123.87,123.82,11.83823939]
[1766051903510,9.20654414,123.87,123.82,11.83823939]
[1766051903882,9.20654414,123.87,123.82,8.07598132]
[1766051904103,3.76225807,123.86,123.82,8.07598132]
[1766051904520,3.76225807,123.86,123.81,11.83891235]
[1766051904698,3.76225807,123.85,123.81,8.07665428]
[1766051905909,8.07332301,123.87,123.82,3.76225807]
[1766051906111,17.2797379,123.87,123.82,3.76225807]
[1766051906304,36.10251737,123.87,123.82,3.76225807]
[1766051907687,3.76225807,123.86,123.81,11.83891235]
[1766051908294,3.76225807,123.85,123.8,11.83949033]
[1766051908490,29.71311333,123.86,123.8,11.83949033]
[1766051908811,28.03115747,123.86,123.8,11.83949033]
[1766051910016,36.10530131,123.86,123.8,11.83949033]
[1766051911592,11.83655701,123.85,123.8,11.83949033]
[1766051913811,3.76225807,123.85,123.8,11.83949033]
[1766051914003,36.1050883,123.86,123.8,11.83949033]
[1766051914820,11.8361889,123.86,123.8,11.83949033]
[1766051915191,24.2688994,123.85,123.8,11.83949033]
[1766051915398,11.8361889,123.86,123.8,11.83949033]
[1766051915715,36.1050883,123.86,123.8,11.83949033]
[1766051916917,11.83673041,123.85,123.8,11.83949033]
[1766051917092,8.07447234,123.85,123.8,11.83949033]
[1766051917412,36.10562981,123.85,123.8,11.83949033]
[1766051919219,3.76225807,123.84,123.79,46.54671107]
[1766051919417,9.20796245,123.84,123.79,10.43767296]
[1766051919598,3.76225807,123.83,123.79,10.43767296]
[1766051920804,36.11042791,123.84,123.79,14.19993103]
[1766051923413,36.11042791,123.84,123.79,22.27807034]
[1766051931796,28.03508464,123.84,123.79,18.51581227]
[1766051931999,36.11002754,123.84,123.79,22.27807034]
[1766051932722,32.34776947,123.84,123.79,22.27807034]
[1766051933022,28.03508464,123.84,123.79,22.27807034]
[1766051933927,28.03508464,123.84,123.79,22.27912365]
[1766051933928,28.03613795,123.84,123.79,22.27912365]
[1766051935222,28.03613795,123.84,123.79,18.51581227]
[1766051935425,28.03613795,123.84,123.79,22.27912365]
[1766051937529,28.03613795,123.84,123.79,18.51581227]
[1766051937829,24.27282657,123.84,123.79,18.51581227]
[1766051938012,28.03613795,123.84,123.79,22.27912365]
[1766051941435,26.68124757,123.84,123.79,20.92423327]
[1766051942933,32.34813527,123.84,123.79,18.51581227]
[1766051943230,34.75655627,123.84,123.79,18.51581227]
[1766051943430,34.75655627,123.84,123.79,20.92423327]
[1766051944109,34.75655627,123.84,123.79,18.51581227]
[1766051944432,34.75655627,123.84,123.79,20.92423327]
[1766051948238,34.75655627,123.84,123.79,18.51581227]
[1766051948537,34.75655627,123.84,123.79,20.92423327]
[1766051951740,34.75655627,123.84,123.79,18.51581227]
[1766051952037,34.75655627,123.84,123.79,20.92423327]
[1766051954043,34.75655627,123.84,123.79,18.51581227]
[1766051954923,5.4512891,123.83,123.8,2.408421]
[1766051955122,5.4512891,123.84,123.8,2.408421]
[1766051956944,5.4512891,123.84,123.79,18.51581227]
[1766051957124,5.4512891,123.84,123.8,2.408421]
[1766051958027,5.4512891,123.84,123.8,10.48574456]
[1766051958223,5.4512891,123.84,123.8,8.07732356]
[1766051958551,15.93404506,123.85,123.8,10.48574456]
[1766051958737,10.48275596,123.85,123.8,10.48574456]
[1766051959445,24.2688994,123.86,123.81,2.408421]
[1766051959446,34.75129604,123.86,123.81,2.408421]
[1766051959648,5.45201232,123.85,123.81,2.408421]
[1766051960657,7.86043332,123.85,123.8,10.48574456]
[1766051960853,5.45201232,123.84,123.8,10.48574456]
[1766051961233,5.45201232,123.84,123.8,8.07732356]
[1766051961449,5.45201232,123.85,123.81,2.408421]
[1766051961647,5.45201232,123.84,123.81,2.408421]
[1766051961840,29.72091172,123.85,123.81,2.408421]
[1766051962042,5.45201232,123.84,123.81,2.408421]
[1766051963333,5.45201232,123.84,123.8,10.48574456]
[1766051963648,5.45201232,123.84,123.8,8.07732356]
[1766051963857,5.45201232,123.85,123.8,10.48574456]
[1766051964041,5.45201232,123.84,123.8,10.48574456]
[1766051964242,5.45201232,123.85,123.8,10.48574456]
[1766051964444,5.45201232,123.84,123.8,10.48574456]
[1766051964739,7.86043332,123.85,123.8,10.48574456]
[1766051964940,5.45201232,123.84,123.8,10.48574456]
[1766051966453,26.6773204,123.85,123.8,10.48574456]
[1766051966661,5.45357543,123.84,123.8,10.48574456]
[1766051966834,26.6773204,123.85,123.8,10.48574456]
[1766051967239,2.408421,123.85,123.8,10.48574456]
[1766051967451,32.13043841,123.85,123.8,10.48574456]
[1766051967755,26.6773204,123.85,123.8,10.48574456]
[1766051969357,34.75168945,123.85,123.8,10.48574456]
[1766051969872,5.452858,123.84,123.8,8.07732356]
[1766051971956,15.93638737,123.84,123.79,10.43767296]
[1766051972137,34.75439219,123.84,123.79,10.43767296]
[1766051972334,34.75439219,123.84,123.79,18.51586843]
[1766051972757,34.75439219,123.84,123.79,20.92428943]
[1766051972942,10.48352937,123.84,123.79,20.92428943]
[1766051974265,8.07510837,123.84,123.8,2.408421]
[1766051974442,13.52811971,123.84,123.8,2.408421]
[1766051975161,5.45301134,123.84,123.8,2.408421]
[1766051976657,13.52802092,123.84,123.8,2.408421]
[1766051976860,13.52802092,123.84,123.79,45.19515225]
[1766051977465,13.52802092,123.84,123.79,20.92428943]
[1766051977857,15.93644192,123.84,123.79,20.92428943]
[1766051978158,10.48343058,123.84,123.79,20.92428943]
[1766051979764,2.408421,123.84,123.79,20.92428943]
[1766051979960,7.86140272,123.84,123.79,20.92428943]
[1766051981062,2.408421,123.84,123.79,20.92428943]
[1766051981445,2.408421,123.84,123.79,42.78673125]
[1766051981654,2.408421,123.84,123.79,45.19515225]
[1766051982363,10.48352314,123.84,123.79,20.92428943]
[1766051983263,10.48352314,123.84,123.79,12.84609396]
[1766051983446,2.408421,123.83,123.79,10.43767296]
[1766051983644,2.408421,123.82,123.79,10.43767296]
[1766051983857,7.86182889,123.82,123.79,10.43767296]
[1766051984043,2.408421,123.82,123.79,10.43767296]
[1766051984243,2.408421,123.83,123.79,10.43767296]
[1766051984472,10.48405159,123.83,123.79,10.43767296]
[1766051985144,30.66861672,123.83,123.79,10.43767296]
[1766051985469,10.48405159,123.83,123.79,10.43767296]
[1766051986458,2.408421,123.82,123.79,10.43767296]
[1766051987171,10.48405159,123.83,123.79,10.43767296]
[1766051993384,5.45166066,123.82,123.79,10.43767296]
[1766051993759,10.48405159,123.83,123.79,10.43767296]
[1766051994396,5.45124716,123.82,123.79,10.43767296]
[1766051994897,10.48405159,123.83,123.79,10.43767296]
[1766051999396,5.45060491,123.82,123.79,10.43767296]
[1766051999765,10.48405159,123.83,123.79,10.43767296]
[1766052000888,28.25984247,123.84,123.79,10.43767296]
[1766052001067,7.85861516,123.83,123.79,10.43767296]
[1766052001992,7.8588921,123.83,123.79,10.43767296]
[1766052002180,15.93449859,123.83,123.79,10.43767296]
[1766052002379,10.48430443,123.83,123.79,10.43767296]
[1766052003494,11.83924729,123.83,123.79,10.43767296]
[1766052006304,8.07560649,123.83,123.79,10.43767296]
[1766052006502,17.28960627,123.83,123.79,10.43767296]
[1766052006811,5.45035898,123.82,123.79,10.43767296]
[1766052012780,5.45035898,123.82,123.78,8.07851536]
[1766052012983,5.45035898,123.82,123.78,18.51618832]
[1766052013494,11.83936063,123.83,123.78,18.51618832]
[1766052013807,32.02392576,123.83,123.78,18.51618832]
[1766052014010,11.83936063,123.83,123.78,18.51618832]
[1766052016512,11.83936063,123.83,123.78,10.43767296]
[1766052016809,11.83936063,123.83,123.77,20.18456513]
[1766052016810,3.7636408,123.8,123.77,20.18456513]
[1766052017030,3.7636408,123.78,123.74,8.08145547]
[1766052017228,9.21537204,123.78,123.74,8.08145547]
[1766052017524,6.80499408,123.77,123.74,8.08145547]
[1766052018226,6.80499408,123.77,123.74,11.84509627]
[1766052019424,5.44594991,123.78,123.74,8.08145547]
[1766052019628,11.84200852,123.78,123.74,8.08145547]
[1766052022813,15.60564932,123.78,123.74,8.08145547]
[1766052023014,15.60564932,123.78,123.73,12.04548755]
[1766052024824,15.60564932,123.78,123.73,8.28184675]
[1766052025002,23.68450541,123.78,123.73,12.04548755]
[1766052025518,23.68450541,123.78,123.73,0.2]
[1766052025718,3.7636408,123.77,123.73,0.2]
[1766052025924,28.04629084,123.77,123.73,0.2]
[1766052026514,36.12580439,123.77,123.73,0.2]
[1766052027025,3.7636408,123.76,123.73,0.2]
[1766052027407,28.04825649,123.76,123.73,0.2]
[1766052028825,36.12871702,123.76,123.73,0.2]
[1766052029525,11.84410133,123.76,123.73,0.2]
[1766052029716,11.84690626,123.75,123.73,0.2]
[1766052030111,3.7636408,123.76,123.73,0.2]
[1766052030325,3.7636408,123.74,123.7,0.2]
[1766052030706,11.84551745,123.74,123.7,0.2]
[1766052031029,3.7636408,123.73,123.7,0.2]
[1766052031417,32.37435812,123.74,123.7,0.2]
[1766052031612,10.43767296,123.76,123.7,12.04755876]
[1766052031811,3.7636408,123.76,123.71,3.7636408]
[1766052032013,10.63767296,123.76,123.72,3.7636408]
[1766052032219,3.7636408,123.77,123.71,10.43767296]
[1766052032418,8.80994492,123.76,123.71,14.20131376]
[1766052032828,16.89045772,123.76,123.71,14.20131376]
[1766052034021,16.89045772,123.76,123.72,3.7636408]
[1766052034322,16.89045772,123.76,123.71,3.7636408]
[1766052034721,20.65409852,123.76,123.71,3.7636408]
[1766052036232,37.09084556,123.76,123.7,10.63767296]
[1766052036444,40.85448636,123.76,123.71,3.7636408]
[1766052040830,3.7636408,123.75,123.7,14.40131376]
[1766052041236,28.05218874,123.75,123.7,14.40131376]
[1766052041443,3.7636408,123.75,123.7,14.40131376]
[1766052042022,56.33308938,123.76,123.71,3.7636408]
[1766052042222,32.04454144,123.76,123.71,3.7636408]
[1766052042528,10.63767296,123.75,123.71,3.7636408]
[1766052043312,10.63767296,123.75,123.7,10.63767296]
[1766052043516,18.71878467,123.75,123.71,3.7636408]
[1766052045425,22.48242547,123.75,123.71,3.7636408]
[1766052045914,22.48242547,123.75,123.7,3.9636408]
[1766052046314,18.71878467,123.75,123.71,3.7636408]
[1766052046918,10.43767296,123.78,123.73,3.7636408]
[1766052046919,8.08011811,123.77,123.73,3.7636408]
[1766052047122,23.95805075,123.8,123.75,3.7636408]
[1766052047336,10.63767296,123.78,123.75,3.7636408]
[1766052047943,18.71713371,123.78,123.75,3.7636408]
[1766052048617,18.71713371,123.78,123.74,3.7636408]
[1766052050233,10.63767296,123.78,123.74,3.7636408]
[1766052050690,14.40131376,123.78,123.73,8.08207216]
[1766052050951,14.40131376,123.78,123.74,8.08140109]
[1766052051145,10.63767296,123.78,123.74,11.84504189]
[1766052057354,10.63767296,123.78,123.73,8.08211428]
[1766052057737,10.63767296,123.78,123.74,3.7636408]
[1766052057936,14.40131376,123.78,123.73,11.84575508]
[1766052058448,10.63767296,123.78,123.74,11.84498734]
[1766052059954,10.63767296,123.78,123.73,8.08211428]
[1766052060127,10.63767296,123.78,123.74,3.7636408]
[1766052061052,10.63767296,123.78,123.74,11.84491789]
[1766052061254,10.63767296,123.78,123.75,3.7636408]
[1766052061425,11.84124719,123.8,123.75,3.7636408]
[1766052061756,25.63497255,123.79,123.75,3.7636408]
[1766052061974,20.19440995,123.79,123.75,3.7636408]
[1766052062255,14.20131376,123.81,123.76,3.7636408]
[1766052062586,9.20404099,123.8,123.75,23.95805075]
[1766052062866,3.7636408,123.76,123.72,8.08262501]
[1766052063356,3.7636408,123.75,123.71,32.36776294]
[1766052063535,3.7636408,123.75,123.71,8.08314725]
[1766052063741,25.08211414,123.75,123.71,8.08314725]
[1766052063945,19.64171395,123.75,123.71,8.08314725]
[1766052064554,23.40535475,123.75,123.71,8.08314725]
[1766052065465,22.0537144,123.75,123.71,8.08314725]
[1766052068158,22.0537251,123.75,123.7,18.72144012]
[1766052068940,2.41201115,123.74,123.7,18.72144012]
[1766052069140,2.41201115,123.74,123.7,8.28376716]
[1766052069356,7.85450106,123.74,123.7,0.2]
[1766052069554,35.57777726,123.74,123.7,0.2]
[1766052069862,30.13528735,123.74,123.7,0.2]
[1766052071062,5.44238632,123.73,123.7,0.2]
[1766052071640,7.85439747,123.73,123.7,0.2]
[1766052071846,5.44238632,123.73,123.7,0.2]
[1766052073154,19.64171395,123.74,123.7,0.2]
[1766052073464,20.93076975,123.75,123.7,0.2]
[1766052073662,5.44084092,123.74,123.7,0.2]
[1766052074363,13.5223342,123.74,123.7,0.2]
[1766052074570,15.93434535,123.74,123.7,0.2]
[1766052074772,34.78401898,123.74,123.7,0.2]
[1766052076050,10.49350443,123.74,123.7,0.2]
[1766052076251,8.08149328,123.74,123.7,0.2]
[1766052076465,15.93330916,123.74,123.7,0.2]
[1766052076665,10.49350443,123.74,123.7,0.2]
[1766052079168,8.08149328,123.74,123.7,0.2]
[1766052079369,5.43866278,123.74,123.71,2.41201115]
[1766052079578,32.37164535,123.75,123.7,2.61201115]
[1766052080252,49.20237971,123.79,123.7,2.61201115]
[1766052080253,6.80499408,123.79,123.7,18.72165198]
[1766052080457,9.03418504,123.81,123.75,2.41201115]
[1766052080458,24.28658166,123.77,123.75,2.41201115]
[1766052080878,10.49012401,123.8,123.75,2.41201115]
[1766052081061,5.43605411,123.79,123.75,13.63396722]
[1766052081269,15.92635536,123.79,123.74,2.41201115]
[1766052081457,10.49030125,123.79,123.74,2.41201115]
[1766052082048,10.49030125,123.79,123.74,16.04597837]
[1766052082661,10.49030125,123.79,123.73,12.84968411]
[1766052082869,8.0782901,123.79,123.73,18.51975316]
[1766052083070,15.92520338,123.79,123.74,2.41201115]
[1766052083373,10.49030125,123.79,123.74,2.41201115]
[1766052083571,10.49030125,123.79,123.7,0.2]
[1766052083572,2.41201115,123.75,123.7,0.2]
[1766052083870,38.71145542,123.79,123.7,10.69569828]
[1766052083871,2.41201115,123.76,123.7,10.69569828]
[1766052084178,2.41201115,123.76,123.71,2.41201115]
[1766052084469,2.41201115,123.72,123.7,0.2]
[1766052084679,7.84700661,123.73,123.7,0.2]
[1766052085281,10.49477868,123.72,123.7,0.2]
[1766052085471,2.41201115,123.71,123.67,0.2]
[1766052085652,2.41201115,123.7,123.67,0.2]
[1766052087262,10.49628788,123.7,123.67,0.2]
[1766052088650,2.41201115,123.69,123.67,1e-08]
[1766052090475,2.41201115,123.7,123.67,1e-08]
[1766052091352,10.49543205,123.71,123.67,1e-08]
[1766052093280,2.41201115,123.7,123.67,1e-08]
[1766052093484,2.41201115,123.69,123.67,1e-08]
[1766052094665,10.49684491,123.69,123.67,1e-08]
[1766052095278,2.41201115,123.68,123.65,0.2]
[1766052095479,2.41201115,123.66,123.63,0.2]
[1766052095665,2.41201115,123.68,123.63,2.61201115]
[1766052096780,10.49763544,123.68,123.63,2.61201115]
[1766052096976,8.08562429,123.68,123.63,10.70063251]
[1766052097176,8.08562429,123.68,123.63,0.2]
[1766052097177,10.49763544,123.68,123.63,0.2]
[1766052098286,30.71108951,123.68,123.63,0.2]
[1766052098466,2.41201115,123.67,123.63,0.2]
[1766052099580,2.41201115,123.68,123.63,0.2]
[1766052100378,8.08603541,123.67,123.63,0.2]
[1766052102594,10.49804656,123.67,123.63,0.2]
[1766052103016,10.49804656,123.67,123.62,21.13892934]
[1766052103017,10.43767296,123.64,123.62,0.2]
[1766052103294,10.43767296,123.63,123.6,0.2]
[1766052103462,12.84968411,123.63,123.6,0.2]
[1766052104080,20.93887793,123.63,123.6,0.2]
[1766052104279,8.08919382,123.63,123.6,0.2]
[1766052104793,8.08919382,123.63,123.6,1e-08]
[1766052104794,2.41201115,123.62,123.6,1e-08]
[1766052104994,4.8240223,123.61,123.57,0.2]
[1766052105291,4.8240223,123.61,123.54,0.2]
[1766052105292,2.41201115,123.58,123.54,0.2]
[1766052105497,2.41201115,123.57,123.54,0.2]
[1766052105997,2.41201115,123.56,123.54,0.2]
[1766052106201,16.90252402,123.57,123.53,0.2]
[1766052106399,2.41201115,123.54,123.48,8.09838103]
[1766052106582,2.41201115,123.52,123.46,10.51117802]
[1766052106897,2.41201115,123.51,123.47,10.43767296]
[1766052107079,8.80994492,123.56,123.47,2.41201115]
[1766052107080,2.41201115,123.53,123.47,2.41201115]
[1766052107275,2.41201115,123.52,123.46,8.09916687]
[1766052107471,33.14380548,123.56,123.46,8.09916687]
[1766052107472,33.14380548,123.56,123.47,2.41201115]
[1766052107695,2.41201115,123.54,123.48,2.41201115]
[1766052107897,2.41201115,123.56,123.5,2.41201115]
[1766052108110,2.41201115,123.56,123.5,10.50873789]
[1766052108275,10.5054681,123.56,123.5,10.50873789]
[1766052108471,2.41201115,123.56,123.5,10.50873789]
[1766052108708,10.50477048,123.57,123.51,2.41201115]
[1766052109209,2.41201115,123.59,123.53,12.84968411]
[1766052109506,10.50283205,123.6,123.54,2.41201115]
[1766052110008,8.0908209,123.6,123.55,2.41201115]
[1766052110184,20.22241154,123.63,123.55,12.84968411]
[1766052110384,10.50131708,123.62,123.55,20.94356514]
[1766052110797,10.50131708,123.62,123.56,2.41201115]
[1766052110997,8.08930593,123.62,123.57,2.41201115]
[1766052111893,10.50131708,123.62,123.55,18.53155399]
[1766052112100,10.50131708,123.62,123.56,2.41201115]
[1766052113310,22.63442269,123.63,123.57,2.41201115]
[1766052113882,2.41201115,123.62,123.57,2.41201115]
[1766052114192,10.5015462,123.62,123.57,2.41201115]
[1766052115116,10.5015462,123.62,123.56,10.50503656]
[1766052116504,8.08953505,123.62,123.57,2.41201115]
[1766052117109,10.50096689,123.63,123.57,2.41201115]
[1766052117608,10.50096689,123.63,123.56,10.50503656]
[1766052117786,8.08895574,123.63,123.56,10.50503656]
[1766052120309,8.08895574,123.63,123.56,8.09302541]
[1766052121691,10.50096689,123.63,123.56,8.09302541]
[1766052123111,10.50179341,123.62,123.56,8.09302541]
[1766052123313,8.08978226,123.62,123.56,8.09302541]
[1766052123517,10.50179341,123.62,123.56,8.09302541]
[1766052125019,10.50179341,123.62,123.56,10.50503656]
[1766052125423,11.86662355,123.62,123.56,8.09302541]
[1766052125619,8.08894163,123.63,123.56,32.10295184]
[1766052125838,8.08894163,123.63,123.57,3.77684129]
[1766052126025,8.08894163,123.63,123.58,3.77684129]
[1766052126539,11.86578292,123.63,123.58,3.77684129]
[1766052127517,11.86578292,123.63,123.57,8.0920731]
[1766052127730,11.86578292,123.63,123.57,11.86891439]
[1766052129139,11.86578292,123.63,123.58,8.09191987]
[1766052130646,11.86508278,123.64,123.58,11.86876116]
[1766052131143,8.08824149,123.64,123.58,11.86876116]
[1766052131844,8.08824149,123.64,123.59,11.86788277]